Cogmind - Beta 13 @@@ ROGUE MODE // 2024.04.01 @ 22:21:43 Player: Zish Result: Destroyed by G-47 Trooper with Particle Gun Performance ------------- Evolutions (2) 1000 Regions Visited (3) 600 Robots Destroyed (85) 425 Value Destroyed (2832) 2832 Prototype IDs (2) 40 Alien Tech Used (0) 0 Bonus (385) 385 TOTAL SCORE: 5282 Bonus ------- High Alert Combat Kills 385 Cogmind --------- Core Integrity 0/550 Matter 64/300 Energy 100/100 System Corruption 1% Temperature Cool (9) Movement Flying (29) Location -8/Materials Parts ------- > --- POWER (1) -------- (None) > --- PROPULSION (3) --- VTOL Module VTOL Module VTOL Module > --- UTILITY (4) ------ Improved Signal Interpreter Transport Network Coupler > --- WEAPON (3) ------- Improved Light Cannon Scythe > --- INVENTORY (5) ---- VTOL Module Improved Propulsion Shielding Light Cannon Peak State ------------ > --- POWER ------------ Improved Ion Engine > --- PROPULSION ------- Armored Treads Armored Treads Armored Treads > --- UTILITY ---------- Improved Heat Sink Large Storage Unit Transport Network Coupler Hacking Suite > --- WEAPON ----------- Assault Cannon Mini Grenade Launcher Heavy Hammer > --- INVENTORY -------- Ion Engine Light Nuclear Core Light Treads Improved Treads VTOL Module VTOL Module VTOL Module VTOL Module Improved Signal Interpreter Light Cannon Light Cannon Improved Light Cannon Assault Cannon Improved Grenade Launcher Scythe [Rating: 29] Favorites ----------- Power Ion Engine Engine Ion Engine Power Core Light Nuclear Core Propulsion Improved Treads Treads Improved Treads Flight Unit VTOL Module Utility Large Storage Unit Device Improved Heat Sink Storage Large Storage Unit Processor Transport Network Coupler Hackware Hacking Suite Protection Light Armor Plating Weapon Heavy Hammer Energy Gun EM Pulse Gun Ballistic Gun Light Assault Rifle Ballistic Cannon Assault Cannon Launcher Mini Grenade Launcher Impact Weapon Heavy Hammer Slashing Weapon Scythe Build | -11 -10 -9 -8 ------- Run | Yrd Mat Mat Mat Slots Evolved 4 | . . 2 2 Power . | . . . . Propulsion 1 | . . 1 . Utility 2 | . . 1 1 Weapon 1 | . . . 1 Parts Attached 63 | 6 14 17 26 Power 11 | 1 2 4 4 Engine 9 | 1 1 4 3 Core 2 | . 1 . 1 Reactor . | . . . . Propulsion 20 | 2 5 5 8 Treads 17 | 2 5 5 5 Leg . | . . . . Wheel . | . . . . Hover . | . . . . Flight 3 | . . . 3 Utility 10 | 1 2 4 3 Device 3 | . 1 1 1 Storage 2 | 1 . 1 . Processor 3 | . . 2 1 Hackware 1 | . . . 1 Protection 1 | . 1 . . Artifact . | . . . . Weapon 22 | 2 5 4 11 Energy Gun 2 | 1 1 . . Energy Cannon . | . . . . Ballistic Gun 5 | 1 2 2 . Ballistic Cannon 10 | . 1 2 7 Launcher 2 | . . . 2 Special Weapon . | . . . . Impact Weapon 2 | . 1 . 1 Slashing Weapon 1 | . . . 1 Piercing Weapon . | . . . . Special Melee Weapon . | . . . . Unidentified Prototypes . | . . . . Parts Lost 35 | . 3 12 20 Power 7 | . . 3 4 Propulsion 12 | . 2 4 6 Utility 6 | . 1 2 3 Weapon 10 | . . 3 7 Highest Loss Streak 6 | . 2 5 6 To Critical Strikes . | . . . . Average Slot Usage (%) 96 | . 96 97 93 Engine 8 | . 12 8 6 Core 1 | . 1 1 . Treads 27 | . 27 32 22 Device 5 | . 6 3 7 Storage 10 | . 14 11 8 Processor 11 | . . 18 11 Hackware 2 | . . . 7 Protection 1 | . 5 . . Ballistic Gun 5 | . 13 4 . Ballistic Cannon 9 | . 8 5 14 Launcher 1 | . . . 4 Impact Weapon 7 | . 1 11 7 Naked Turns . | . . . . Heaviest Build 40 | 14 17 34 40 Greatest Support 69 | 40 46 69 63 Greatest Overweight (x) 8 | . 4 8 1 Average Overweight (x) . | . . . . Largest Inventory Capacity 15 | 8 8 15 15 Average Capacity 12 | 6 8 14 14 Most Carried 15 | 5 8 15 15 Average Carried 9 | 2 5 10 11 Final Capacity 15 | 8 8 15 5 Final Carried 13 | 2 8 13 3 Class Distribution -------------------- 78% | Mutant 19% | Scavenger-Mutant Dominant Class ---------------- Mutant | -10/Materials Mutant | -9/Materials Mutant | -8/Materials Resources | -11 -10 -9 -8 ----------- Run | Yrd Mat Mat Mat Matter Collected 2187 | 229 409 572 977 Remotely . | . . . . Salvage Created 2434 | . 558 846 1030 Parts 139 | . 37 47 55 Haulers Intercepted 4 | . 1 3 . Recyclers Shooed 7 | . 3 3 1 Parts Field Recycled . | . . . . Retrieved Matter . | . . . . Parts Self-Destructed . | . . . . Prevented . | . . . . Kills | -11 -10 -9 -8 ------- Run | Yrd Mat Mat Mat Combat Hostiles Destroyed 62 | . 10 17 35 Melee 2 | . . 1 1 Guns 11 | . 5 6 . Cannons 26 | . 5 9 12 AOE 21 | . . . 21 Classes Destroyed 13 | . 4 4 5 Worker 2 | . . . 2 Builder 5 | . . . 5 Hauler 4 | . 1 3 . Recycler 3 | . 1 1 1 Mechanic 1 | . . . 1 Operator 2 | . . 1 1 Watcher 6 | . 3 1 2 Swarmer 7 | . . 2 5 Grunt 40 | . 10 10 20 Brawler 3 | . . 1 2 Duelist 2 | . . . 2 Sentry 9 | . . 4 5 Heavy 1 | . . . 1 Best Kill Streak 21 | . 3 4 21 Combat Bots Only 11 | . 3 3 11 Max Kills in Single Turn 4 | . 2 1 4 Gunslinging 1 | . 1 . . Exploded 3 | . . . 3 Melee 1 | . . 1 1 Uniques/NPCs Destroyed . | . . . . Combat | -11 -10 -9 -8 -------- Run | Yrd Mat Mat Mat Hostile Shots Fired 600 | . 92 171 337 Missed 188 | . 32 60 96 Damage Taken 6367 | . 757 1800 3810 Core 976 | . 110 311 555 Absorbed by Shields . | . . . . Regen/Repaired (Parts) 41 | . . 41 . Core Remaining (%) 59 | 100 56 22 . Volleys Fired 271 | . 55 131 85 Largest 3 | . 2 1 3 Hottest 123 | . 60 44 123 Shots Fired 389 | . 100 131 158 Gun 136 | . 61 75 . Cannon 205 | . 39 56 110 Launcher 48 | . . . 48 Special . | . . . . Kinetic 340 | . 99 131 110 Thermal . | . . . . Explosive 48 | . . . 48 Electromagnetic 1 | . 1 . . Robot Hit Streak 17 | . 8 17 14 Robot Miss Streak 5 | . 5 4 5 Penetration Max . | . . . . Secondary Targets 2 | . 2 . . Max Gunslinging Chain 1 | . 1 . . Shots Hit Robots 252 | . 52 100 100 Core Hits 149 | . 29 32 88 Critical Kills . | . . . . Critical Parts Destroyed 2 | . . 2 . Critical Strikes 8 | . . 4 4 Blast 6 | . . 2 4 Smash 2 | . . 2 . Melee Attacks 34 | . . 13 21 Impact 27 | . . 13 14 Slashing 7 | . . . 7 Piercing . | . . . . Sneak Attacks 1 | . . 1 . Combat Hostiles . | . . . . Follow-up Attacks . | . . . . Damage Inflicted 7795 | . 752 1634 5409 Guns 985 | . 359 626 . Cannons 2678 | . 393 736 1549 Explosions 3447 | . . . 3447 Melee 685 | . . 272 413 Ramming . | . . . . Kinetic 3643 | . 732 1362 1549 Thermal 114 | . . . 114 Explosive 3313 | . . . 3313 Electromagnetic 40 | . 20 . 20 Impact 593 | . . 272 321 Slashing 92 | . . . 92 Piercing . | . . . . Highest Corruption 15 | . . 15 1 Average Corruption 4 | . . 8 1 Corruption Purged . | . . . . Corruption Blocked . | . . . . Effects 51 | . . 43 8 Message Errors 17 | . . 15 2 Matter Fused 12 | . . 11 1 Heat Flow Errors 4 | . . 3 1 Energy Discharges 7 | . . 7 . Parts Rejected 1 | . . 1 . Data Loss (minor) 6 | . . 5 1 Data Loss (major) 1 | . . 1 . Misfires 1 | . . . 1 Alerts 2 | . . . 2 Overload Shots . | . . . . Overflow Damage 365 | . . 167 198 Projectiles 36 | . . 30 6 Explosions 168 | . . . 168 Melee 161 | . . 137 24 Knockbacks 36 | . 5 10 21 Impact 2 | . . . 2 Kinetic 32 | . 5 10 17 Secondary 2 | . . . 2 Self-Inflicted Damage 290 | . . . 290 Shots 11 | . . . 11 Rammed . | . . . . Targets Rammed . | . . . . Kicked . | . . . . Crushed . | . . . . Highest Temperature 270 | . 82 270 212 Average Temperature 39 | . 20 72 34 Received Heat Transfer 2739 | . 465 708 1566 Siege Activations . | . . . . Robots Corrupted . | . . . . Combat Hostiles . | . . . . Parts Fried 6 | . . 3 3 Impact Corruptions 7 | . . 5 2 Robots Melted . | . . . . Combat Hostiles . | . . . . Parts Melted . | . . . . Heat Transferred 50 | . . . 50 Parts Sabotaged . | . . . . Parts Stolen . | . . . . Parts Stripped . | . . . . Power Chain Reactions . | . . . . Alert | -11 -10 -9 -8 ------- Run | Yrd Mat Mat Mat Peak Influence 1095 | . 149 233 1095 Initial 17 | . . . 17 Average 212 | . 61 97 469 Maximum Alert Level 3 | . . 1 3 Low Security (%) 79 | 100 100 96 42 Level 1 6 | . . 3 14 Level 2 3 | . . . 9 Level 3 11 | . . . 33 Level 4 . | . . . . Level 5 . | . . . . High Security . | . . . . Max Security . | . . . . Squads Dispatched 13 | . . 4 9 Investigation 2 | . . 1 1 Extermination . | . . . . Reinforcement 8 | . . 3 5 Assault 2 | . . . 2 Garrison 1 | . . . 1 Intercept . | . . . . Searches Triggered . | . . . . Construction Impeded 1 | . . . 1 Haulers Reinforced . | . . . . Active Scanning Responses . | . . . . Cargo Convoy Interrupts . | . . . . Stealth | -11 -10 -9 -8 --------- Run | Yrd Mat Mat Mat Distress Signals 8 | . . 3 5 Communications Jammed . | . . . . Distress Signals . | . . . . Times Spotted 113 | . 17 39 57 Peak Tracking Total 11 | . 3 7 11 Tactical Retreats 11 | . 1 2 8 Traps | -11 -10 -9 -8 ------- Run | Yrd Mat Mat Mat Traps Triggered 4 | . 2 1 1 Indirectly . | . . . . Trap Hack Attempts . | . . . . Triggered . | . . . . Disarmed 1 | . . . 1 Reprogrammed . | . . . . Reused . | . . . . Traps Extracted . | . . . . Installed . | . . . . Triggered . | . . . . Machines | -11 -10 -9 -8 ---------- Run | Yrd Mat Mat Mat Machines Disabled 7 | . . 1 6 Max in Single Turn 2 | . . 1 2 Garrison Access 1 | . . . 1 Machines Repaired . | . . . . Machines Dismantled . | . . . . Machines Sabotaged . | . . . . Overloaded Fab Kills . | . . . . Hacking | -11 -10 -9 -8 --------- Run | Yrd Mat Mat Mat Machines Accessed 15 | . 2 7 6 Terminals 10 | . 2 4 4 Fabricators . | . . . . Repair Stations 2 | . . 1 1 Recycling Units 1 | . . . 1 Scanalyzers 2 | . . 2 . Garrison Access . | . . . . Total Hacks 46 | . 5 19 22 Successful 30 | . 4 10 16 Failed 16 | . 1 9 6 Catastrophic . | . . . . Database Lockouts . | . . . . Manual . | . . . . Terminals 26 | . 5 11 10 Fabricators . | . . . . Repair Stations 12 | . . 3 9 Recycling Units 3 | . . . 3 Scanalyzers 5 | . . 5 . Garrison Access . | . . . . Terminal Hacks 16 | . 4 4 8 Record 2 | . 1 1 . Prototype ID Bank 1 | . . 1 . Emergency Access Points 1 | . 1 . . Alert Level 1 | . . . 1 Locate Traps 3 | . . 1 2 Disarm Traps 1 | . . . 1 Investigation Status 1 | . 1 . . Recall Investigation 1 | . . . 1 Hauler Manifests 2 | . 1 . 1 Registered Components 1 | . . . 1 Zone Layout 2 | . . 1 1 Fabricator Hacks . | . . . . Repair Station Hacks 7 | . . 2 5 Scan Component 4 | . . 1 3 Repair 3 | . . 1 2 Recycling Unit Hacks 3 | . . . 3 Report Inventory 1 | . . . 1 Retrieve Components 2 | . . . 2 Scanalyzer 4 | . . 4 . Insert Component 2 | . . 2 . Analyze 2 | . . 2 . Garrison Access Hacks . | . . . . Unauthorized Hacks . | . . . . Terminals . | . . . . Fabricators . | . . . . Repair Stations . | . . . . Recycling Units . | . . . . Scanalyzers . | . . . . Garrison Access . | . . . . Data Cores Recovered . | . . . . Used . | . . . . Hacking Detections 8 | . 1 3 4 Full Trace Events 4 | . . 1 3 Feedback Events . | . . . . Feedback Blocked . | . . . . Robot Schematics Acquired . | . . . . Robots Built . | . . . . Authchips . | . . . . Time . | . . . . Total Robot Build Rating . | . . . . Part Schematics Acquired 2 | . . 2 . Parts Built . | . . . . Authchips . | . . . . Time . | . . . . Total Part Build Rating . | . . . . Parts Repaired 2 | . . 1 1 Time 96 | . . 26 70 Parts Recycled . | . . . . Recycled Matter . | . . . . Retrieved Matter . | . . . . Retrieved Components 10 | . . . 10 Parts Scanalyzed 2 | . . 2 . Part Schematics Acquired 2 | . . 2 . Parts Damaged . | . . . . Bothacking | -11 -10 -9 -8 ------------ Run | Yrd Mat Mat Mat Used RIF Installer . | . . . . Robots Hacked . | . . . . Non-combat . | . . . . Combat . | . . . . Robot Hacks Applied . | . . . . Relay Couplers Released 2 | . . . 2 Machine Destruction 2 | . . . 2 Fabnet Peak Effective % . | . . . . Robots Rewired . | . . . . Allies Hacked . | . . . . Hacks Repelled . | . . . . Allies | -11 -10 -9 -8 -------- Run | Yrd Mat Mat Mat Total Allies . | . . . . Largest Group . | . . . . Highest-Rated Group . | . . . . Highest-Rated Ally . | . . . . Total Orders . | . . . . Ally Attacks . | . . . . Total Damage . | . . . . Kills . | . . . . Allies Corrupted . | . . . . Allies Melted . | . . . . Intel | -11 -10 -9 -8 ------- Run | Yrd Mat Mat Mat Robot Analysis Total . | . . . . Derelict Logs Recovered . | . . . . Drone Launches . | . . . . Drone Recoveries . | . . . . Exploration | -11 -10 -9 -8 ------------- Run | Yrd Mat Mat Mat Turns Passed 3763 | 89 800 1608 1266 Spaces Moved 1590 | 55 366 723 446 Core 16 | 12 1 3 . Treads 1526 | 43 365 720 398 Legs . | . . . . Wheels . | . . . . Hover . | . . . . Flight 48 | . . . 48 Fastest Speed 29 | 50 160 160 29 Average Speed 161 | 136 160 161 164 Slowest Speed 450 | 160 250 450 250 Overloaded Moves . | . . . . Propulsion Burnouts . | . . . . Robots Hopped . | . . . . Cave-ins Triggered 1 | . . 1 . Exploration Rate (%) 39 | 4 46 63 44 Regions Visited 3 Branch Regions . Pre-discovered Areas . | . . . . Known Exits Taken 1 | . . 1 . Unknown Exits Taken 2 | 1 1 . . Scrap Searched . | . . . . Spaces Dug 4 | . . 4 . Terrain Destroyed 278 | . . 8 270 Melee 4 | . . 4 . Projectile 17 | . . 4 13 AOE 257 | . . . 257 Terrain Rammed . | . . . . Walls Destroyed . | . . . . Machines Disabled . | . . . . Actions | -11 -10 -9 -8 --------- Run | Yrd Mat Mat Mat Total 2375 | 70 493 1020 792 Wait 315 | . 27 99 189 Move 1587 | 54 365 722 446 Hop . | . . . . Pick Up 76 | 9 22 29 16 Fast Attach . | . . . . Attach 61 | 6 14 16 25 Detach 6 | . 2 1 3 Swap 2 | . . 1 1 Drop 23 | 1 8 8 6 Fire 271 | . 55 131 85 Melee 34 | . . 13 21 Ram . | . . . . Kick . | . . . . Crush . | . . . . Escape Stasis . | . . . . Rewire . | . . . . Trap . | . . . . Miscellaneous . | . . . . Route ------- -11/Scrapyard -10/Materials (discovered 4 exits: *Mat x2 / [*Min x2]) -9/Materials (discovered 3 exits: *Mat x2 / *Min) -8/Materials History --------- Turn | Location | Event 4 | -11/Scrapyard | Discovered new exit (range 15) 90 | -11/Scrapyard | Entered Materials 300 | -10/Materials | Discovered new exit (range 7) 317 | -10/Materials | Build established: Mutant 633 | -10/Materials | Discovered new exit (range 13) 690 | -10/Materials | Discovered new exit (range 4) 840 | -10/Materials | Discovered new exit (range 16) 890 | -10/Materials | Entered another Materials area 890 | -9/Materials | Evolved 2 slots: Propulsion x1, Utility x1 1288 | -9/Materials | Discovered new exit (range 9) 1299 | -9/Materials | Identified exit to Mines 1372 | -9/Materials | Repaired Lgt. Treads 1920 | -9/Materials | Core integrity fell below 50% 1958 | -9/Materials | Lost 5 parts (1p3n1w) 2109 | -9/Materials | Discovered new exit (range 16) 2186 | -9/Materials | Identified exit to Materials 2241 | -9/Materials | Build established: Scavenger-Mutant 2251 | -9/Materials | Crushed by falling debris 2251 | -9/Materials | System corruption reached 10% 2282 | -9/Materials | Lost 3 parts (1p1n1u) 2486 | -9/Materials | Discovered exit to Materials (range 8) 2498 | -9/Materials | Entered another Materials area 2498 | -8/Materials | Evolved 2 slots: Utility x1, Weapon x1 2696 | -8/Materials | Core integrity fell below 50% 2706 | -8/Materials | Lost 5 parts (1p2n1u1w) 2802 | -8/Materials | Repaired Hvy. Hammer 3209 | -8/Materials | Build established: Mutant 3298 | -8/Materials | First assault squad dispatched 3387 | -8/Materials | Destroyed 11 combat bots 3472 | -8/Materials | Core integrity fell below 20% 3651 | -8/Materials | Lost 6 parts (1p2n3w) 3764 | -8/Materials | Destroyed by G-47 Trooper with Particle Gun Last Messages --------------- 03665_ U-05 Engineer builds a Wall. 03678_ U-05 Engineer lays Concrete. 03679_ U-05 Engineer builds a Wall. 03688_ U-05 Engineer lays Concrete. 03689_ U-05 Engineer builds a Wall. 03728_ G-47 Trooper knocked back. 03730_ G-47 Trooper destroyed. 03732_ G-47 Trooper knocked back. 03742_ Hacking Suite destroyed. 03750_ W:WA|=26Q>